Workbook

Sheet CUSTOS DE REMODELAÇÃO
B1: FOLHA DE CÁLCULO DOS CUSTOS DE REMODELAÇÃO DA COZINHA
B3: Categoria | C3: Itens | D3: Quantidade | E3: Custo Estimado | F3: Custo Real | G3: Custo Estimado Total | H3: Custo Real Total
B4: Armários | C4: Armários inferiores: Modular-Padrão (quantidade em metros lineares) | D4: 25 | E4: 5.00 € | G4: =Dados[[#This Row],[Quantidade]]*Dados[[#This Row],[Custo Estimado]] -> 125 € | H4: =Dados[[#This Row],[Quantidade]]*Dados[[#This Row],[Custo Real]] -> 0 €
B5: Armários | C5: Armários superiores: Modular-Padrão (quantidade em metros lineares) | D5: 25 | E5: 3.50 € | G5: =Dados[[#This Row],[Quantidade]]*Dados[[#This Row],[Custo Estimado]] -> 88 € | H5: =Dados[[#This Row],[Quantidade]]*Dados[[#This Row],[Custo Real]] -> 0 €
B6: Eletrodomésticos de Limpeza | C6: Máquina de lavar-loiça: Padrão | D6: 1 | E6: 250.00 € | G6: =Dados[[#This Row],[Quantidade]]*Dados[[#This Row],[Custo Estimado]] -> 250 € | H6: =Dados[[#This Row],[Quantidade]]*Dados[[#This Row],[Custo Real]] -> 0 €
B7: Eletrodomésticos de Limpeza | C7: Triturador de Resíduos: Padrão | D7: 1 | E7: 175.00 € | G7: =Dados[[#This Row],[Quantidade]]*Dados[[#This Row],[Custo Estimado]] -> 175 € | H7: =Dados[[#This Row],[Quantidade]]*Dados[[#This Row],[Custo Real]] -> 0 €
B8: Eletrodomésticos para Cozinhar | C8: Fogão: Embutido Padrão | D8: 1 | E8: 375.00 € | G8: =Dados[[#This Row],[Quantidade]]*Dados[[#This Row],[Custo Estimado]] -> 375 € | H8: =Dados[[#This Row],[Quantidade]]*Dados[[#This Row],[Custo Real]] -> 0 €
B9: Eletrodomésticos para Cozinhar | C9: Micro-ondas: Padrão | D9: 1 | E9: 300.00 € | G9: =Dados[[#This Row],[Quantidade]]*Dados[[#This Row],[Custo Estimado]] -> 300 € | H9: =Dados[[#This Row],[Quantidade]]*Dados[[#This Row],[Custo Real]] -> 0 €
B10: Balcões | C10: Superfície sólida (quantidade em metro lineares) | D10: 23 | E10: 10.00 € | G10: =Dados[[#This Row],[Quantidade]]*Dados[[#This Row],[Custo Estimado]] -> 230 € | H10: =Dados[[#This Row],[Quantidade]]*Dados[[#This Row],[Custo Real]] -> 0 €
B11: Portas | C11: Interiores: Madeira Maciça Laminada | D11: 1 | E11: 65.00 € | G11: =Dados[[#This Row],[Quantidade]]*Dados[[#This Row],[Custo Estimado]] -> 65 € | H11: =Dados[[#This Row],[Quantidade]]*Dados[[#This Row],[Custo Real]] -> 0 €
B12: Extras | C12: Extras: Água Quente Instantânea Padrão | D12: 1 | E12: 120.00 € | G12: =Dados[[#This Row],[Quantidade]]*Dados[[#This Row],[Custo Estimado]] -> 120 € | H12: =Dados[[#This Row],[Quantidade]]*Dados[[#This Row],[Custo Real]] -> 0 €
B13: Extras | C13: Extras: Dispensador de Sabão Líquido | D13: 1 | E13: 40.00 € | G13: =Dados[[#This Row],[Quantidade]]*Dados[[#This Row],[Custo Estimado]] -> 40 € | H13: =Dados[[#This Row],[Quantidade]]*Dados[[#This Row],[Custo Real]] -> 0 €
B14: Torneiras | C14: Torneira: Misturadora, Padrão | D14: 1 | E14: 130.00 € | G14: =Dados[[#This Row],[Quantidade]]*Dados[[#This Row],[Custo Estimado]] -> 130 € | H14: =Dados[[#This Row],[Quantidade]]*Dados[[#This Row],[Custo Real]] -> 0 €
B15: Pavimento | C15: Laminado (quantidade em metros quadrados) | D15: 165 | E15: 3.50 € | G15: =Dados[[#This Row],[Quantidade]]*Dados[[#This Row],[Custo Estimado]] -> 578 € | H15: =Dados[[#This Row],[Quantidade]]*Dados[[#This Row],[Custo Real]] -> 0 €
B16: Eletrodomésticos para a Roupa | C16: Máquina de Lavar-roupa: Padrão | D16: 1 | E16: 500.00 € | G16: =Dados[[#This Row],[Quantidade]]*Dados[[#This Row],[Custo Estimado]] -> 500 € | H16: =Dados[[#This Row],[Quantidade]]*Dados[[#This Row],[Custo Real]] -> 0 €
B17: Eletrodomésticos para a Roupa | C17: Máquina de Secar-roupa: Padrão | D17: 1 | E17: 375.00 € | G17: =Dados[[#This Row],[Quantidade]]*Dados[[#This Row],[Custo Estimado]] -> 375 € | H17: =Dados[[#This Row],[Quantidade]]*Dados[[#This Row],[Custo Real]] -> 0 €
B18: Iluminação | C18: Iluminação: Embutida | D18: 4 | E18: 35.00 € | G18: =Dados[[#This Row],[Quantidade]]*Dados[[#This Row],[Custo Estimado]] -> 140 € | H18: =Dados[[#This Row],[Quantidade]]*Dados[[#This Row],[Custo Real]] -> 0 €
B19: Frigoríficos | C19: Frigorifico: Independente, Premium | D19: 1 | E19: 1,200.00 € | G19: =Dados[[#This Row],[Quantidade]]*Dados[[#This Row],[Custo Estimado]] -> 1,200 € | H19: =Dados[[#This Row],[Quantidade]]*Dados[[#This Row],[Custo Real]] -> 0 €
B20: Lava-loiças | C20: Duas cubas de Aço Inoxidável Premium | D20: 1 | E20: 125.00 € | G20: =Dados[[#This Row],[Quantidade]]*Dados[[#This Row],[Custo Estimado]] -> 125 € | H20: =Dados[[#This Row],[Quantidade]]*Dados[[#This Row],[Custo Real]] -> 0 €
B21: Ventilação | C21: Unidade coberta: Tubagem Padrão | D21: 1 | E21: 180.00 € | G21: =Dados[[#This Row],[Quantidade]]*Dados[[#This Row],[Custo Estimado]] -> 180 € | H21: =Dados[[#This Row],[Quantidade]]*Dados[[#This Row],[Custo Real]] -> 0 €
B22: Paredes | C22: Painéis (quantidade em metros quadrados) | D22: 70 | E22: 2.00 € | G22: =Dados[[#This Row],[Quantidade]]*Dados[[#This Row],[Custo Estimado]] -> 140 € | H22: =Dados[[#This Row],[Quantidade]]*Dados[[#This Row],[Custo Real]] -> 0 €
B23: Janelas | C23: Deslizantes | D23: 2 | E23: 120.00 € | G23: =Dados[[#This Row],[Quantidade]]*Dados[[#This Row],[Custo Estimado]] -> 240 € | H23: =Dados[[#This Row],[Quantidade]]*Dados[[#This Row],[Custo Real]] -> 0 €
B24: Outros | G24: =Dados[[#This Row],[Quantidade]]*Dados[[#This Row],[Custo Estimado]] -> 0 € | H24: =Dados[[#This Row],[Quantidade]]*Dados[[#This Row],[Custo Real]] -> 0 €
B25: Total | E25: =SUBTOTAL(109,Dados[Custo Estimado]) -> 4,014.00 € | F25: =SUBTOTAL(109,Dados[Custo Real]) -> 0.00 € | G25: =SUBTOTAL(109,Dados[Custo Estimado Total]) -> 5,375.00 € | H25: =SUBTOTAL(109,Dados[Custo Real Total]) -> 0.00 €
B26: Subtotal | G26: =SUBTOTAL(109,Dados[Custo Estimado Total]) -> 5,375.00 € | H26: =SUBTOTAL(109,Dados[Custo Real Total]) -> 0.00 €
B27: Custos Inesperados – Mais 30% | G27: =G26*0.3 -> 1,612.50 € | H27: =H26*0.3 -> 0.00 €
B28: Total | G28: =SUM(G26:G27) -> 6,987.50 € | H28: =SUM(H26:H27) -> 0.00 €
